fUSD/lending_fUSD_20241215
["ID","MTS","AMOUNT","RATE_DAILY","PERIOD"]
[345437018,1734257443835,-500.0,0.00019894,3]
[345437019,1734257443844,-500.0,0.00019894,3]
[345437020,1734257443854,-500.0,0.00019894,3]
[345437021,1734257443863,-1466.66,0.00019894,3]
[345437022,1734257443872,-500.0,0.00019894,3]
[345437023,1734257443882,-500.0,0.00019894,3]
[345437024,1734257443891,-338.51383693,0.00019894,3]
[345437025,1734257443901,-591.17,0.00019894,3]
[345437026,1734257443910,-813.95,0.00019894,3]
[345437027,1734257443920,-500.0,0.00019894,3]
[345437028,1734257443929,-500.0,0.00019894,3]
[345437029,1734257443939,-500.0,0.00019894,3]
[345437030,1734257443949,-500.0,0.00019895,3]
[345437031,1734257443959,-500.0,0.00019895,3]
[345437032,1734257443968,-968.44411383,0.00019895,4]
[345437033,1734257443977,-500.0,0.00019895,3]
[345437034,1734257443987,-588.13,0.00019895,3]
[345437035,1734257443998,-500.0,0.00019895,3]
[345437036,1734257444007,-500.0,0.00019895,3]
[345437037,1734257444016,-500.0,0.00019895,3]
[345437038,1734257444026,-500.0,0.00019895,3]
[345437039,1734257444036,-500.0,0.00019895,3]
[345437040,1734257444045,-500.0,0.00019895,3]
[345437041,1734257444055,-500.0,0.00019895,3]
[345437042,1734257444065,-500.0,0.00019895,3]
[345437043,1734257444074,-500.0,0.00019895,3]
[345437044,1734257444083,-500.0,0.00019895,3]
[345437045,1734257444093,-500.0,0.00019895,3]
[345437046,1734257444102,-500.0,0.00019895,3]
[345437047,1734257444111,-500.0,0.00019895,3]
[345437048,1734257444121,-500.0,0.00019895,3]
[345437049,1734257444130,-500.0,0.00019895,3]
[345437050,1734257444139,-500.0,0.00019895,3]
[345437051,1734257444149,-252.97956465,0.00019895,3]
[345437052,1734257444252,-150.0,0.00019785,2]
[345437053,1734257444262,-150.0,0.00019799,2]
[345437054,1734257444272,-150.0,0.0001982,2]
[345437055,1734257444281,-150.0,0.00019835,2]
[345437056,1734257444291,-247.02043535,0.00019895,3]
[345437057,1734257444300,-500.0,0.00019895,3]
[345437058,1734257444310,-500.0,0.00019895,3]
[345437059,1734257444322,-500.0,0.00019895,3]
[345437060,1734257444331,-500.0,0.00019895,3]
[345437061,1734257444340,-500.0,0.00019895,3]
[345437062,1734257444349,-500.0,0.00019895,3]
[345437063,1734257444359,-500.0,0.00019895,3]
[345437064,1734257444368,-480.01061248,0.00019895,3]
[345437065,1734257444377,-500.0,0.00019895,3]
[345437066,1734257444386,-500.0,0.00019895,3]
[345437067,1734257444395,-500.0,0.00019895,3]
[345437068,1734257444404,-500.0,0.00019895,3]
[345437069,1734257444413,-356.4896768,0.00019895,3]
[345437070,1734257444422,-500.0,0.00019895,3]
[345437071,1734257444431,-500.0,0.00019895,3]
[345437072,1734257444440,-500.0,0.00019895,3]
[345437073,1734257444449,-500.0,0.00019895,3]
[345437074,1734257444614,-500.0,0.00019895,3]
[345437075,1734257444625,-500.0,0.00019895,3]
[345437076,1734257444634,-500.0,0.00019895,3]
[345437077,1734257444644,-500.0,0.00019895,3]
[345437078,1734257444653,-500.0,0.00019895,3]
[345437079,1734257444663,-500.0,0.00019895,3]
[345437080,1734257444672,-500.0,0.00019895,3]
[345437081,1734257444682,-500.0,0.00019895,3]
[345437082,1734257444692,-500.0,0.00019895,3]
[345437083,1734257444701,-625.43019301,0.00019895,3]
[345437084,1734257444711,-500.0,0.00019895,3]
[345437085,1734257444721,-500.0,0.00019895,3]
[345437086,1734257444731,-500.0,0.00019895,3]
[345437087,1734257444741,-500.0,0.00019895,3]
[345437088,1734257444750,-500.0,0.00019895,3]
[345437089,1734257444760,-500.0,0.00019895,3]
[345437090,1734257444770,-500.0,0.00019895,3]
[345437091,1734257444779,-500.0,0.00019895,3]
[345437092,1734257444789,-500.0,0.00019895,3]
[345437093,1734257444799,-500.0,0.00019895,3]
[345437094,1734257444808,-500.0,0.00019895,3]
[345437095,1734257444819,-550.03,0.00019895,3]
[345437096,1734257444829,-500.0,0.00019895,3]
[345437097,1734257444839,-500.0,0.00019895,3]
[345437098,1734257444849,-500.0,0.00019895,3]
[345437099,1734257444861,-500.0,0.00019895,3]
[345437100,1734257444871,-500.0,0.00019895,3]
[345437101,1734257444880,-500.0,0.00019895,3]
[345437102,1734257444891,-500.0,0.00019895,3]
[345437103,1734257444900,-500.0,0.00019895,3]
[345437104,1734257444909,-500.0,0.00019895,3]
[345437105,1734257444919,-500.0,0.00019895,3]
[345437106,1734257444928,-419.8871443,0.00019895,3]
[345437107,1734257444938,-500.0,0.00019895,3]
[345437108,1734257444947,-500.0,0.00019895,3]
[345437109,1734257444957,-500.0,0.00019895,3]
[345437110,1734257444967,-500.0,0.00019895,3]
[345437111,1734257444977,-500.0,0.00019895,3]
[345437112,1734257444988,-500.0,0.00019895,3]
[345437113,1734257444998,-500.0,0.00019895,3]
[345437114,1734257445007,-500.0,0.00019895,3]
[345437115,1734257445017,-500.0,0.00019895,3]
[345437116,1734257445027,-309.3993389,0.00019895,3]
[345437117,1734257445038,-575.6585946,0.00019895,3]
[345437118,1734257445049,-718.22,0.00019895,3]
[345437119,1734257445059,-548.0,0.00019895,3]
[345437120,1734257445069,-500.0,0.00019895,3]
[345437121,1734257445080,-500.0,0.00019895,3]
[345437122,1734257445089,-500.0,0.00019895,3]
[345437123,1734257445098,-500.0,0.00019895,3]
[345437124,1734257445108,-500.0,0.00019895,3]
[345437125,1734257445118,-500.0,0.00019895,3]
[345437126,1734257445128,-500.0,0.00019895,3]
[345437127,1734257445138,-462.82,0.00019895,3]
[345437128,1734257445148,-500.0,0.00019895,3]
[345437129,1734257445158,-500.0,0.00019895,3]
[345437130,1734257445168,-500.0,0.00019895,3]
[345437132,1734257445179,-500.0,0.00019895,3]
[345437134,1734257445189,-500.0,0.00019895,3]
[345437135,1734257445199,-500.0,0.00019895,3]
[345437136,1734257445209,-500.0,0.00019895,3]
[345437137,1734257445218,-500.0,0.00019895,3]
[345437138,1734257445228,-500.0,0.00019895,3]
[345437140,1734257445238,-500.0,0.00019895,3]
[345437142,1734257445248,-500.0,0.00019895,3]
[345437143,1734257445258,-500.0,0.00019895,3]
[345437144,1734257445267,-500.0,0.00019895,3]
[345437145,1734257445276,-500.0,0.00019895,3]
[345437146,1734257445285,-500.0,0.00019895,3]
[345437147,1734257445294,-500.0,0.00019895,3]
[345437148,1734257445303,-289.36106939,0.00019895,3]
[345437149,1734257445761,-150.0,0.0001973,2]
[345437150,1734257445770,-150.0,0.00019743,2]
[345437151,1734257445780,-150.0,0.00019778,2]
[345437152,1734257445789,-150.0,0.00019787,2]
[345437153,1734257445800,-150.0,0.00019792,2]
[345437154,1734257445809,-150.0,0.00019807,2]
[345437155,1734257445819,-150.0,0.00019814,2]
[345437156,1734257445828,-150.0,0.00019819,2]
[345437157,1734257445838,-150.0,0.00019823,2]
[345437158,1734257445848,-150.0,0.00019824,2]
[345437159,1734257445857,-150.0,0.00019827,2]
[345437160,1734257445867,-150.0,0.00019829,2]
[345437161,1734257445876,-9.67186652,0.0001984,2]
[345437162,1734257445887,-140.32813348,0.0001984,2]
[345437163,1734257445897,-150.0,0.00019844,2]
[345437164,1734257445906,-150.0,0.00019847,2]
[345437165,1734257445916,-71.94989493,0.00019859,2]
[345437166,1734257445968,-78.05010507,0.00019859,2]
[345437167,1734257445978,-150.0,0.00019867,2]
[345437168,1734257445987,-150.0,0.00019867,2]
[345437169,1734257446003,-150.0,0.00019867,2]
[345437170,1734257446012,-150.0,0.00019868,2]
[345437171,1734257446021,-150.0,0.00019876,2]
[345437172,1734257446030,-150.0,0.00019892,2]
[345437173,1734257446041,-500.0,0.00019893,3]
[345437174,1734257446051,-500.0,0.00019893,3]
[345437175,1734257446060,-150.0,0.00019894,2]
[345437176,1734257446070,-210.63893061,0.00019895,3]
[345437177,1734257446079,-500.0,0.00019895,3]
[345437178,1734257446088,-500.0,0.00019895,3]
[345437179,1734257446098,-500.0,0.00019895,3]
[345437180,1734257446107,-500.0,0.00019895,3]
[345437181,1734257446117,-500.0,0.00019895,3]
[345437182,1734257446127,-200.0,0.00019895,3]
[345437183,1734257446137,-500.0,0.00019895,3]
[345437184,1734257446147,-500.0,0.00019895,3]
[345437185,1734257446156,-500.0,0.00019895,3]
[345437186,1734257446165,-500.0,0.00019895,3]
[345437187,1734257446175,-500.0,0.00019895,3]
[345437188,1734257446184,-500.0,0.00019895,3]
[345437189,1734257446194,-220.78245627,0.00019895,3]
[345437190,1734257446309,-279.21754373,0.00019895,3]
[345437191,1734257446323,-500.0,0.00019895,3]
[345437192,1734257446333,-500.0,0.00019895,3]
[345437193,1734257446343,-500.0,0.00019895,3]
[345437194,1734257446352,-500.0,0.00019895,3]
[345437195,1734257446362,-500.0,0.00019895,3]
[345437196,1734257446371,-500.0,0.00019895,3]
[345437197,1734257446380,-500.0,0.00019895,3]
[345437198,1734257446389,-500.0,0.00019895,3]
[345437199,1734257446399,-500.0,0.00019895,3]
[345437200,1734257446407,-500.0,0.00019895,3]
[345437201,1734257446416,-810.1,0.00019895,3]
[345437202,1734257446426,-500.0,0.00019895,3]
[345437203,1734257446435,-500.0,0.00019895,3]
[345437204,1734257446448,-500.0,0.00019895,3]
[345437205,1734257446458,-33.89364538,0.00019895,3]
[345437206,1734257446469,-466.10635462,0.00019895,3]
[345437207,1734257446478,-500.0,0.00019895,3]
[345437208,1734257446487,-500.0,0.00019895,3]
[345437209,1734257446504,-923.02,0.00019895,3]
[345437210,1734257446514,-500.0,0.00019895,2]
[345437211,1734257446523,-281.95562742,0.00019895,3]
[345437212,1734257446536,-218.04437258,0.00019895,3]
[345437213,1734257446546,-500.0,0.00019895,3]
[345437214,1734257446555,-500.0,0.00019895,3]
[345437215,1734257446565,-500.0,0.00019895,3]
[345437216,1734257446574,-500.0,0.00019895,3]
[345437217,1734257446584,-500.0,0.00019895,3]
[345437218,1734257446593,-500.0,0.00019895,3]
[345437219,1734257446603,-500.0,0.00019895,3]
[345437220,1734257446613,-500.0,0.00019895,3]
[345437221,1734257446623,-500.0,0.00019895,3]
[345437222,1734257446633,-150.0,0.00019895,2]
[345437223,1734257446643,-500.0,0.00019895,3]
[345437224,1734257446652,-500.0,0.00019895,3]
[345437225,1734257446662,-500.0,0.00019895,3]
[345437226,1734257446671,-500.0,0.00019895,3]
[345437227,1734257446680,-561.39,0.00019895,3]
[345437228,1734257446690,-500.0,0.00019895,3]
[345437229,1734257446700,-500.0,0.00019895,3]
[345437230,1734257446709,-500.0,0.00019895,3]
[345437231,1734257446718,-500.0,0.00019895,3]
[345437232,1734257446727,-153.76604877,0.00019895,3]
[345437233,1734257446736,-500.0,0.00019895,3]
[345437234,1734257446749,-500.0,0.00019895,3]
[345437235,1734257446758,-500.0,0.00019895,3]
[345437236,1734257446767,-500.0,0.00019895,3]
[345437237,1734257446777,-500.0,0.00019895,3]
[345437238,1734257446787,-500.0,0.00019895,3]
[345437239,1734257446797,-500.0,0.00019895,3]
[345437240,1734257446807,-250.74,0.00019895,3]
[345437241,1734257446816,-500.0,0.00019895,3]
[345437242,1734257446825,-500.0,0.00019895,3]
[345437243,1734257446835,-500.0,0.00019895,3]
[345437244,1734257446844,-500.0,0.00019895,3]
[345437245,1734257446854,-500.0,0.00019895,3]
[345437246,1734257446863,-200.77872211,0.00019895,3]
[345437247,1734257446873,-500.0,0.00019895,3]
[345437248,1734257446926,-500.0,0.00019895,3]
[345437249,1734257446935,-500.0,0.00019895,3]
[345437250,1734257446944,-151.0,0.00019895,2]
[345437251,1734257446952,-500.0,0.00019895,3]
[345437252,1734257446963,-500.0,0.00019895,3]
[345437253,1734257446973,-500.0,0.00019895,3]
[345437254,1734257446983,-223.06550809,0.00019895,3]
[345437255,1734257447026,-276.93449191,0.00019895,3]
[345437256,1734257447035,-151.0,0.00019895,2]
[345437257,1734257447044,-500.0,0.00019895,3]
[345437258,1734257447054,-2231.32,0.00019895,3]
[345437259,1734257447063,-1393.79,0.00019895,3]
[345437260,1734257447073,-500.0,0.00019895,3]
[345437261,1734257447082,-500.0,0.00019895,3]
[345437262,1734257447091,-1280.63,0.00019895,3]
[345437263,1734257447100,-151.0,0.00019895,2]
[345437264,1734257447109,-500.0,0.00019895,3]
[345437265,1734257447118,-200.12719,0.00019895,2]
[345437266,1734257447127,-500.0,0.00019895,3]
[345437267,1734257447136,-500.0,0.00019895,3]
[345437268,1734257447146,-203.402308,0.00019895,2]
[345437269,1734257447155,-938.99,0.00019895,3]
[345437270,1734257447165,-500.0,0.00019895,3]
[345437271,1734257447174,-500.0,0.00019895,3]
[345437272,1734257447184,-532.54,0.00019895,3]
[345437273,1734257447193,-500.0,0.00019895,3]
[345437274,1734257447203,-299.32131587,0.00019895,3]
[345437275,1734257447212,-1728.58,0.00019895,3]
[345437276,1734257447222,-500.0,0.00019895,3]
[345437277,1734257447231,-773.47,0.00019895,3]
[345437278,1734257447243,-500.0,0.00019895,3]
[345437279,1734257447252,-1064.69,0.00019895,3]
[345437280,1734257447262,-151.0,0.00019895,2]
[345437281,1734257447272,-8440.58,0.00019895,3]
[345437282,1734257447282,-283.318389,0.00019895,2]
[345437283,1734257447291,-500.0,0.00019895,3]
[345437284,1734257447301,-1191.66,0.00019895,3]
[345437285,1734257447311,-500.0,0.00019895,3]
[345437286,1734257447324,-500.0,0.00019895,3]
[345437287,1734257447333,-865.14,0.00019895,3]
[345437288,1734257447342,-500.0,0.00019895,3]
[345437289,1734257447351,-1280.63,0.00019895,3]
[345437290,1734257447362,-1099.93,0.00019895,3]
[345437291,1734257447373,-151.0,0.00019895,2]
[345437292,1734257447382,-1404.37,0.00019895,3]
[345437293,1734257447392,-500.0,0.00019895,3]
[345437294,1734257447402,-151.0,0.00019895,2]
[345437295,1734257447412,-151.0,0.00019895,2]
[345437296,1734257447421,-685.740126,0.00019895,2]
[345437297,1734257447431,-1743.54,0.00019895,3]
[345437298,1734257447440,-151.0,0.00019895,2]
[345437299,1734257447450,-608.2,0.00019895,3]
[345437300,1734257447459,-685.740126,0.00019895,2]
[345437301,1734257447469,-1591.71,0.00019895,3]
[345437302,1734257447478,-917.91,0.00019895,3]
[345437303,1734257447487,-151.0,0.00019895,2]
[345437304,1734257447499,-1266.34,0.00019895,3]
[345437305,1734257447509,-500.0,0.00019895,3]
[345437306,1734257447518,-500.0,0.00019895,3]
[345437307,1734257447528,-151.0,0.00019895,2]
[345437308,1734257447537,-500.0,0.00019895,3]
[345437309,1734257447547,-500.0,0.00019895,3]
[345437310,1734257447556,-1585.77,0.00019895,3]
[345437311,1734257447565,-500.0,0.00019895,3]
[345437312,1734257447574,-500.0,0.00019895,3]
[345437313,1734257447584,-1445.05,0.00019895,3]
[345437314,1734257447593,-500.0,0.00019895,3]
[345437315,1734257447602,-500.0,0.00019895,3]
[345437316,1734257447611,-4858.06,0.00019895,3]
[345437317,1734257447621,-517.77071782,0.00019895,3]
[345437318,1734257447631,-151.0,0.00019895,2]
[345437319,1734257447641,-151.0,0.00019895,2]
[345437320,1734257447651,-500.0,0.00019895,3]
[345437321,1734257447661,-313.144149,0.00019895,2]
[345437322,1734257447671,-151.668231,0.00019895,2]
[345437323,1734257447682,-500.0,0.00019895,3]
[345437324,1734257447691,-500.0,0.00019895,3]
[345437325,1734257447701,-151.0,0.00019895,2]
[345437326,1734257447710,-500.0,0.00019895,3]
[345437327,1734257447719,-313.144149,0.00019895,2]
[345437328,1734257447729,-500.0,0.00019895,3]
[345437329,1734257447738,-500.0,0.00019895,3]
[345437330,1734257447749,-226.15757078,0.00019895,3]
[345437331,1734257447759,-500.0,0.00019895,3]
[345437332,1734257447768,-151.0,0.00019895,2]
[345437333,1734257447778,-500.0,0.00019895,3]
[345437334,1734257447788,-3540.74,0.00019895,3]
[345437335,1734257447798,-500.0,0.00019896,3]
[345437336,1734257447808,-500.0,0.00019896,3]
[345437337,1734257447817,-500.0,0.00019896,3]
[345437338,1734257447827,-500.0,0.00019896,3]
[345437339,1734257447836,-546.26,0.00019896,3]
[345437340,1734257447846,-500.0,0.00019896,3]
[345437341,1734257447855,-500.0,0.00019896,3]
[345437342,1734257447864,-500.0,0.00019896,3]
[345437343,1734257447873,-500.0,0.00019896,3]
[345437344,1734257447883,-376.83,0.00019896,3]
[345437345,1734257447892,-500.0,0.00019896,3]
[345437346,1734257447902,-631.24,0.00019896,3]
[345437347,1734257447911,-500.0,0.00019896,3]
[345437348,1734257447921,-934.8,0.00019896,3]
[345437349,1734257447930,-500.0,0.00019896,3]
[345437350,1734257447939,-500.0,0.00019896,3]
[345437351,1734257447949,-500.0,0.00019896,3]
[345437352,1734257447958,-500.0,0.00019896,3]
[345437353,1734257447968,-500.0,0.00019896,3]
[345437354,1734257447977,-500.0,0.00019896,3]
[345437355,1734257447986,-500.0,0.00019896,3]
[345437356,1734257447996,-500.0,0.00019896,3]
[345437357,1734257448008,-500.0,0.00019896,3]
[345437358,1734257448018,-151.0,0.00019896,2]
[345437359,1734257448027,-500.0,0.00019896,3]
[345437360,1734257448037,-500.0,0.00019896,3]
[345437361,1734257448047,-151.0,0.00019896,2]
[345437362,1734257448057,-151.0,0.00019896,2]
[345437363,1734257448066,-500.0,0.00019896,3]
[345437364,1734257448075,-500.0,0.00019896,3]
[345437365,1734257448085,-500.0,0.00019896,3]
[345437366,1734257448095,-197.2356443,0.00019896,3]
[345437367,1734257448104,-500.0,0.00019896,3]
[345437368,1734257448115,-500.0,0.00019896,3]
[345437369,1734257448125,-151.0,0.00019896,2]
[345437370,1734257448138,-151.0,0.00019896,2]
[345437371,1734257448148,-500.0,0.00019896,3]
[345437372,1734257448158,-152.088545,0.00019896,2]
[345437373,1734257448168,-151.0,0.00019896,2]
[345437374,1734257448178,-500.0,0.00019896,3]
[345437375,1734257448188,-151.0,0.00019896,2]
[345437376,1734257448198,-500.0,0.00019896,3]
[345437377,1734257448208,-150.0,0.00019896,2]
[345437378,1734257448218,-863.37,0.00019896,3]
[345437379,1734257448228,-500.0,0.00019896,3]
[345437380,1734257448238,-500.0,0.00019896,3]
[345437381,1734257448250,-671.6,0.00019896,3]
[345437382,1734257448260,-151.0,0.00019896,2]
[345437383,1734257448269,-724.3,0.00019896,3]
[345437384,1734257448279,-152.97506,0.00019896,2]
[345437385,1734257448289,-151.0,0.00019896,2]
[345437386,1734257448299,-151.0,0.00019896,2]
[345437387,1734257448309,-151.0,0.00019896,2]
[345437388,1734257448322,-151.0,0.00019896,2]
[345437389,1734257448331,-151.0,0.00019896,2]
[345437390,1734257448341,-151.0,0.00019896,2]
[345437391,1734257448351,-2956.89,0.00019896,3]
[345437392,1734257448363,-151.0,0.00019896,2]
[345437393,1734257448373,-500.0,0.00019896,3]
[345437394,1734257448383,-746.49,0.00019896,3]
[345437395,1734257448395,-500.0,0.00019896,3]
[345437396,1734257448405,-500.0,0.00019896,3]
[345437397,1734257448415,-1400.2,0.00019896,3]
[345437398,1734257448425,-523.53,0.00019896,3]
[345437399,1734257448436,-500.0,0.00019896,3]
[345437400,1734257448446,-500.0,0.00019896,3]
[345437401,1734257448455,-500.0,0.00019896,3]
[345437402,1734257448467,-500.0,0.00019896,3]
[345437403,1734257448477,-829.79,0.00019896,3]
[345437404,1734257448487,-500.0,0.00019896,3]
[345437405,1734257448499,-500.0,0.00019896,3]
[345437406,1734257448509,-500.0,0.00019896,3]
[345437407,1734257448519,-500.0,0.00019896,3]
[345437408,1734257448529,-500.0,0.00019896,3]
[345437409,1734257448539,-500.0,0.00019896,3]
[345437410,1734257448549,-500.0,0.00019896,3]
[345437411,1734257448559,-500.0,0.00019896,3]
[345437412,1734257448569,-500.0,0.00019896,3]
[345437413,1734257448579,-500.0,0.00019896,3]
[345437414,1734257448589,-500.0,0.00019896,3]
[345437415,1734257448599,-500.0,0.00019896,3]
[345437416,1734257448609,-500.0,0.00019896,3]
[345437417,1734257448619,-500.0,0.00019896,3]
[345437418,1734257448629,-500.0,0.00019896,3]
[345437419,1734257448639,-500.0,0.00019896,3]
[345437420,1734257448649,-500.0,0.00019896,3]
[345437421,1734257448659,-500.0,0.00019896,3]
[345437422,1734257448669,-500.0,0.00019896,3]
[345437423,1734257448679,-667.22,0.00019896,3]
[345437424,1734257448689,-500.0,0.00019896,3]
[345437425,1734257448699,-500.0,0.00019896,3]
[345437426,1734257448709,-500.0,0.00019896,3]
[345437427,1734257448719,-500.0,0.00019896,3]
[345437428,1734257448729,-500.0,0.00019896,3]
[345437429,1734257448740,-487.56291898,0.00019896,3]
[345437430,1734257448752,-311.96217667,0.00019896,3]
[345437431,1734257448762,-500.0,0.00019896,3]
[345437432,1734257448773,-500.0,0.00019896,3]
[345437433,1734257448783,-150.0,0.00019896,2]
[345437434,1734257448793,-500.0,0.00019897,3]
[345437435,1734257448804,-537.1,0.00019897,3]
[345437436,1734257448814,-500.0,0.00019897,3]
[345437437,1734257448823,-500.0,0.00019897,3]
[345437438,1734257448833,-500.0,0.00019897,3]
[345437439,1734257448843,-500.0,0.00019897,3]
[345437440,1734257448853,-500.0,0.00019897,3]
[345437441,1734257448863,-500.0,0.00019897,3]
[345437442,1734257448872,-729.45,0.00019897,3]
[345437443,1734257448882,-500.0,0.00019897,3]
[345437444,1734257448892,-575.64,0.00019897,3]
[345437445,1734257448901,-1345.23,0.00019897,3]
[345437446,1734257448911,-500.0,0.00019897,3]
[345437447,1734257448920,-564.09630275,0.00019897,3]
[345437448,1734257448929,-500.0,0.00019897,3]
[345437449,1734257448938,-500.0,0.00019897,3]
[345437450,1734257448948,-500.0,0.00019897,3]
[345437451,1734257448958,-1061.43,0.00019897,3]
[345437452,1734257448967,-500.0,0.00019897,3]
[345437453,1734257448977,-500.0,0.00019897,3]
[345437454,1734257448987,-500.0,0.00019897,3]
[345437455,1734257448997,-500.0,0.00019897,3]
[345437456,1734257449007,-620.42,0.00019897,3]
[345437457,1734257449016,-500.0,0.00019897,3]
[345437458,1734257449026,-500.0,0.00019897,3]
[345437459,1734257449035,-574.77,0.00019897,3]
[345437460,1734257449044,-500.0,0.00019897,3]
[345437461,1734257449054,-500.0,0.00019897,3]
[345437462,1734257449063,-156.429253,0.00019897,3]
[345437463,1734257449073,-186.10579258,0.00019897,3]
[345437464,1734257449083,-1466.66,0.00019897,3]
[345437465,1734257449092,-500.0,0.00019897,3]
[345437466,1734257449101,-591.17,0.00019897,3]
[345437467,1734257449111,-500.0,0.00019897,3]
[345437468,1734257449121,-500.0,0.00019897,3]
[345437469,1734257449131,-500.0,0.00019897,3]
[345437470,1734257449141,-100038.5499,0.00019898,2]
[345437471,1734257449150,-151.0,0.00019898,2]
[345437472,1734257449160,-151.0,0.00019898,2]
[345437473,1734257449170,-151.0,0.00019898,2]
[345437474,1734257449179,-151.0,0.00019898,2]
[345437475,1734257449189,-151.652151,0.00019898,2]
[345437476,1734257449199,-761.948287,0.00019898,2]
[345437477,1734257449208,-761.948287,0.00019898,2]
[345437478,1734257449218,-151.0,0.00019898,2]
[345437479,1734257449227,-151.0,0.00019898,2]
[345437480,1734257449237,-151.0,0.00019898,2]
[345437481,1734257449252,-151.0,0.00019898,2]
[345437482,1734257449262,-151.0,0.00019898,2]
[345437483,1734257449271,-151.425114,0.00019898,2]
[345437484,1734257449281,-151.0,0.00019898,2]
[345437485,1734257449291,-151.0,0.00019898,2]
[345437486,1734257449302,-150.0,0.00019898,2]
[345437487,1734257449312,-156.46999,0.00019898,2]
[345437488,1734257449323,-151.0,0.00019898,2]
[345437489,1734257449332,-151.0,0.00019898,2]
[345437490,1734257449342,-151.0,0.00019898,2]
[345437491,1734257449351,-151.6843,0.00019898,2]
[345437492,1734257449362,-151.0,0.00019898,2]
[345437493,1734257449372,-151.0,0.00019898,2]
[345437494,1734257449382,-151.0,0.00019898,2]
[345437495,1734257449394,-151.0,0.00019898,2]
[345437496,1734257449404,-151.0,0.00019898,2]
[345437497,1734257449413,-151.0,0.00019898,2]
[345437498,1734257449423,-151.0,0.00019898,2]
[345437499,1734257449434,-151.0,0.00019898,2]
[345437500,1734257449445,-151.0,0.00019898,2]
[345437501,1734257449455,-685.740126,0.00019898,2]
[345437502,1734257449464,-151.0,0.00019898,2]
[345437503,1734257449474,-685.740126,0.00019898,2]
[345437504,1734257449484,-191.678764,0.00019898,2]
[345437505,1734257449494,-151.0,0.00019898,2]
[345437506,1734257449504,-151.0,0.00019898,2]
[345437507,1734257449515,-313.144149,0.00019898,2]
[345437508,1734257449525,-151.0,0.00019898,2]
[345437509,1734257449535,-313.144149,0.00019898,2]
[345437510,1734257449546,-151.0,0.00019898,2]
[345437511,1734257449557,-150.0,0.000199,2]
[345437512,1734257449567,-547.0,0.000199,7]
[345437513,1734257449578,-1016.72372928,0.000199,3]
[345437514,1734257449588,-163.43431386,0.000199,2]
[345437515,1734257449597,-493.43731392,0.000199,2]
[345437516,1734257449607,-150.0,0.00019901,2]
[345437517,1734257449617,-150.0,0.00019902,2]
[345437518,1734257449627,-150.0,0.00019903,2]
[345437519,1734257449637,-150.0,0.00019903,2]
[345437520,1734257449647,-150.0,0.00019904,2]
[345437521,1734257449657,-150.0,0.00019905,2]